fUSD/lending_fUSD_20250720
["ID","MTS","AMOUNT","RATE_DAILY","PERIOD"]
[373450745,1753013507955,-1804.88,0.00019945,2]
[373450746,1753013507966,-1538.55,0.00019945,2]
[373450747,1753013507978,-515.66,0.00019945,2]
[373450748,1753013507987,-480.0,0.00019945,2]
[373450749,1753013507998,-465.61778375,0.00019945,2]
[373450750,1753013508008,-480.0,0.00019945,2]
[373450751,1753013508018,-1355.52,0.00019945,2]
[373450752,1753013508027,-9261.19,0.00019945,2]
[373450753,1753013508037,-480.0,0.00019945,2]
[373450754,1753013508047,-4234.24,0.00019945,2]
[373450755,1753013508056,-895.67,0.00019945,2]
[373450756,1753013508067,-1394.78,0.00019945,2]
[373450757,1753013508076,-3560.8,0.00019945,2]
[373450758,1753013508086,-730.7,0.00019945,2]
[373450759,1753013508096,-809.54,0.00019945,2]
[373450760,1753013508106,-868.35,0.00019945,2]
[373450761,1753013508116,-1757.67,0.00019945,2]
[373450762,1753013508127,-759.65,0.00019945,2]
[373450763,1753013508137,-1017.17,0.00019945,2]
[373450764,1753013508147,-35248.29,0.00019945,2]
[373450765,1753013508157,-1021.35,0.00019945,2]
[373450766,1753013508167,-480.0,0.00019945,2]
[373450767,1753013508176,-1244.45,0.00019945,2]
[373450768,1753013508187,-480.0,0.00019945,2]
[373450769,1753013508197,-3481.18,0.00019945,2]
[373450770,1753013508206,-2165.44,0.00019945,2]
[373450771,1753013508216,-1156.3,0.00019945,2]
[373450772,1753013508227,-480.0,0.00019945,2]
[373450773,1753013508241,-2045.37,0.00019945,2]
[373450774,1753013508251,-709.15,0.00019945,2]
[373450775,1753013508262,-5121.82,0.00019945,2]
[373450776,1753013508274,-700.45,0.00019945,2]
[373450777,1753013508283,-1115.11,0.00019945,2]
[373450778,1753013508293,-732.11,0.00019945,2]
[373450779,1753013508304,-788.88,0.00019945,2]
[373450780,1753013508314,-1705.55,0.00019945,2]
[373450781,1753013508323,-1820.86,0.00019945,2]
[373450782,1753013508333,-1603.92,0.00019945,2]
[373450783,1753013508342,-480.0,0.00019945,2]
[373450784,1753013508352,-2291.6,0.00019945,2]
[373450785,1753013508362,-4538.14,0.00019945,2]
[373450786,1753013508371,-1167.46,0.00019945,2]
[373450787,1753013508383,-480.0,0.00019945,2]
[373450788,1753013508393,-1766.28,0.00019945,2]
[373450789,1753013508403,-1927.52,0.00019945,2]
[373450790,1753013508413,-551.46,0.00019945,2]
[373450791,1753013508423,-851.47,0.00019945,2]
[373450792,1753013508433,-480.0,0.00019945,2]
[373450793,1753013508443,-1573.77,0.00019945,2]
[373450794,1753013508453,-816.02,0.00019945,2]
[373450795,1753013508463,-2564.67,0.00019945,2]
[373450796,1753013508472,-1348.14,0.00019945,2]
[373450797,1753013508482,-1319.12,0.00019945,2]
[373450798,1753013508492,-629.16,0.00019945,2]
[373450799,1753013508503,-2773.41,0.00019945,2]
[373450800,1753013508513,-480.0,0.00019945,2]
[373450801,1753013508523,-480.0,0.00019945,2]
[373450802,1753013508533,-952.71,0.00019945,2]
[373450803,1753013508548,-369.02624837,0.00019945,2]
[373450804,1753013508558,-1758.02,0.00019945,2]
[373450805,1753013508567,-1723.5,0.00019945,2]
[373450806,1753013508577,-1539.49,0.00019945,2]
[373450807,1753013508586,-1015.04,0.00019945,2]
[373450808,1753013508595,-480.0,0.00019945,2]
[373450809,1753013508605,-813.68,0.00019945,2]
[373450810,1753013508616,-1361.52,0.00019945,2]
[373450811,1753013508627,-1434.25,0.00019945,2]
[373450812,1753013508637,-480.0,0.00019945,2]
[373450813,1753013508647,-6436.22,0.00019945,2]
[373450814,1753013508657,-2525.33,0.00019945,2]
[373450815,1753013508666,-1549.35,0.00019945,2]
[373450816,1753013508676,-1003.73,0.00019945,2]
[373450817,1753013508686,-1508.86,0.00019945,2]
[373450818,1753013508695,-176.12373018,0.00019945,2]
[373450819,1753013508704,-717.59,0.00019945,2]
[373450820,1753013508714,-1095.0,0.00019945,2]
[373450821,1753013508723,-2638.56,0.00019945,2]
[373450822,1753013508734,-1222.94,0.00019945,2]
[373450823,1753013508743,-619.46,0.00019945,2]
[373450824,1753013508753,-643.579262,0.00019945,2]
[373450825,1753013508762,-1701.08,0.00019945,2]
[373450826,1753013508771,-905.54,0.00019945,2]
[373450827,1753013508780,-1577.19661182,0.00019945,2]
[373450828,1753013508804,-480.0,0.00019178,2]
[373450829,1753013508813,-305.39,0.00019287,2]
[373450830,1753013508822,-138.21338818,0.00019945,2]
[373450831,1753013508832,-480.0,0.00019945,2]
[373450832,1753013508841,-643.579268,0.00019945,2]
[373450833,1753013508851,-1135.56,0.00019945,2]
[373450834,1753013508860,-480.0,0.00019945,2]
[373450835,1753013508869,-91.55734379,0.00019945,2]
[373450836,1753013513830,300.0,0.00030136,120]
[373450838,1753013557230,45750.0,0.0003013,120]
[373450839,1753013591072,185.56,0.00013699,2]
[373450840,1753013592230,-150.0,0.00017499,2]
[373450841,1753013592256,-40.271168,0.000175,2]
[373450842,1753013593500,300.0,0.00030136,120]
[373450844,1753013603283,180.39708389,0.00014781,7]
[373450864,1753013711594,1000.0,0.00030136,120]
[373450867,1753013723587,1000.0,0.00030136,120]
[373450870,1753013731969,1000.0,0.00030136,120]
[373450874,1753013743505,1000.0,0.00030136,120]
[373450875,1753013750378,1000.0,0.00030136,120]
[373450877,1753013776205,1000.0,0.00030136,120]
[373450878,1753013784687,1000.0,0.00030136,120]
[373450879,1753013791013,1000.0,0.00030136,120]
[373450880,1753013796995,1000.0,0.00030136,120]
[373450881,1753013805870,1000.0,0.00030136,120]
[373450883,1753013814050,1000.0,0.00030136,120]
[373450884,1753013825481,1000.0,0.00030136,120]
[373450885,1753013837726,1000.0,0.00030136,120]
[373450887,1753013846023,1000.0,0.00030136,120]
[373450888,1753013851794,1000.0,0.00030136,120]
[373450891,1753013857221,1000.0,0.00030136,120]
[373450897,1753013863338,1000.0,0.00030136,120]
[373450899,1753013870953,315.15927901,0.000211,28]
[373450909,1753014069567,300.483251,0.0003013,120]
[373450910,1753014087485,300.0000009,0.0003013,120]
[373450922,1753014290489,1119.84,0.00026611,120]
[373450923,1753014326944,103739.25973421,0.0003013,120]
[373450926,1753014372300,-309.728832,0.00016447,2]
[373450927,1753014396394,-190.27116799,0.0001696,2]
[373450928,1753014419199,541.0,0.00015447,2]
[373450929,1753014420764,271.01,0.00030136,120]
[373450936,1753014493763,-176.74014925,0.0001696,2]
[373450940,1753014508455,220.0,0.00030136,120]
[373450962,1753014631879,-1000.0,0.0001705,2]
[373450963,1753014631888,-150.0,0.0001714,2]
[373450964,1753014631898,-1000.0,0.00017227,2]
[373450965,1753014631907,-150.0,0.0001729,2]
[373450966,1753014631916,-150.0,0.00017359,2]
[373450967,1753014631926,-150.0,0.00017359,2]
[373450968,1753014631935,-150.0,0.00017359,2]
[373450969,1753014631944,-150.0,0.00017359,2]
[373450970,1753014631954,-190.271168,0.00017387,2]
[373450971,1753014631963,-150.0,0.00017487,2]
[373450972,1753014631973,-435.0,0.000175,2]
[373450973,1753014631982,-150.0,0.00017551,2]
[373450974,1753014631991,-150.0,0.00017579,2]
[373450975,1753014632000,-163.91,0.00017677,2]
[373450976,1753014632009,-159.81,0.00017741,2]
[373450977,1753014632018,-1119.84,0.00017741,2]
[373450978,1753014632027,-482.2122822,0.00017744,2]
[373450979,1753014632056,-717.7877178,0.00017744,2]
[373450980,1753014632066,-150.0,0.00017745,2]
[373450981,1753014632075,-150.0,0.00017868,2]
[373450982,1753014632084,-150.0,0.00017963,2]
[373450983,1753014632094,-154.19,0.0001798,2]
[373450984,1753014632103,-150.0,0.00018002,2]
[373450985,1753014632112,-150.0,0.00018047,2]
[373450986,1753014632122,-1000.0,0.00018092,2]
[373450987,1753014632131,-687.4,0.00018105,2]
[373450988,1753014632140,-150.0,0.0001813,2]
[373450989,1753014632150,-150.0,0.00018132,2]
[373450990,1753014632159,-154.19,0.00018159,2]
[373450991,1753014632168,-150.0,0.0001819,2]
[373450992,1753014632178,-1000.0,0.00018216,2]
[373450993,1753014632187,-150.0,0.00018233,2]
[373450994,1753014632197,-231.28369723,0.00018239,2]
[373450996,1753014632206,-151.0,0.00018239,2]
[373450997,1753014632215,-150.86,0.0001825,2]
[373450999,1753014632225,-150.99,0.0001825,2]
[373451001,1753014632234,-1423.74,0.0001825,2]
[373451002,1753014632243,-1000.0,0.0001825,2]
[373451003,1753014632252,-177.97,0.00018329,2]
[373451004,1753014632261,-961.0,0.00018396,2]
[373451005,1753014632271,-807.0,0.00018396,2]
[373451006,1753014632280,-2017.0,0.00018396,2]
[373451007,1753014632289,-1268.0,0.00018396,2]
[373451008,1753014632299,-595.0,0.00018396,2]
[373451009,1753014632308,-1687.0,0.00018396,2]
[373451010,1753014632318,-14.78008828,0.00018396,2]
[373451011,1753014632335,-547.21991172,0.00018396,2]
[373451012,1753014632348,-952.0,0.00018396,2]
[373451013,1753014632358,-863.58705976,0.00018396,2]
[373451014,1753014632375,-2488.41294024,0.00018396,2]
[373451015,1753014632385,-150.0,0.00018516,2]
[373451016,1753014632395,-150.0,0.00018645,2]
[373451017,1753014632404,-1000.0,0.00018656,2]
[373451018,1753014632414,-1000.0,0.00018656,2]
[373451019,1753014632423,-427.0,0.0001878,2]
[373451020,1753014632433,-156.587,0.00018787,2]
[373451021,1753014632442,-6719.05132599,0.00018878,2]
[373451022,1753014632452,-842.951639,0.00018888,2]
[373451023,1753014632461,-3348.85112084,0.00018895,2]
[373451024,1753014632471,-3348.85112084,0.00018897,2]
[373451025,1753014632480,-5236.84210395,0.00018901,2]
[373451026,1753014632490,-150.0,0.00018902,2]
[373451027,1753014632499,-842.951639,0.00018903,2]
[373451028,1753014632508,-5236.84210395,0.00018905,2]
[373451029,1753014632518,-2951.57509323,0.00018906,2]
[373451030,1753014632528,-1013.90531526,0.0001891,2]
[373451033,1753014635489,176.28,0.00013699,2]
[373451034,1753014637649,-1937.66977797,0.0001891,2]
[373451035,1753014637660,-565.81046969,0.00018912,2]
[373451036,1753014637671,-958.68610971,0.00018912,2]
[373451037,1753014637684,-977.20997729,0.00018912,2]
[373451038,1753014637706,-2735.13554726,0.00018912,2]
[373451039,1753014637716,-13818.00580327,0.00018913,2]
[373451040,1753014637726,-13818.00580327,0.00018925,2]
[373451041,1753014637736,-6719.05132599,0.00018926,2]
[373451042,1753014637746,-406.50509934,0.00018936,2]
[373451043,1753014637756,-977.79343337,0.00018939,2]
[373451044,1753014637766,-4462.64037945,0.00018941,2]
[373451045,1753014637776,-977.79343337,0.00018944,2]
[373451046,1753014637786,-4814.23547265,0.00018947,2]
[373451237,1753014640011,-4111.04528616,0.00018947,2]
[373451239,1753014640022,-8925.28075881,0.00018947,2]
[373451241,1753014640032,-13818.00580327,0.00018953,2]
[373451243,1753014640041,-4462.64037945,0.00018955,2]
[373451245,1753014640051,-406.50509934,0.00018956,2]
[373451247,1753014640060,-8925.28075881,0.00018958,2]
[373451249,1753014640069,-3348.85112084,0.00018969,2]
[373451251,1753014640079,-6719.05132599,0.00018969,2]
[373451253,1753014640089,-977.79343337,0.00018974,2]
[373451255,1753014640099,-4462.64037945,0.0001898,2]
[373451257,1753014640108,-406.50509934,0.00018985,2]
[373451259,1753014640118,-2951.57509323,0.00018987,2]
[373451261,1753014640128,-842.951639,0.00018998,2]
[373451263,1753014640137,-3000.0,0.00019,5]
[373451265,1753014640147,-152.81,0.00019,2]
[373451267,1753014640156,-151.26,0.00019,2]
[373451269,1753014640166,-150.83,0.00019,2]
[373451271,1753014640176,-476.8747822,0.00019074,2]
[373451273,1753014640185,-160.0,0.00019074,2]
[373451275,1753014640195,-210.86573235,0.00019074,2]
[373451277,1753014640204,-839.31074571,0.00019074,2]
[373451279,1753014640214,-155.45930866,0.00019078,2]
[373451281,1753014640224,-1415.97731026,0.00019078,2]
[373451283,1753014640233,-190.27116799,0.00019078,2]
[373451285,1753014640243,-165.8724736,0.00019078,2]
[373451287,1753014640252,-266.93644467,0.0001911,2]
[373451289,1753014640262,-1415.97731019,0.00019151,2]
[373451292,1753014640272,-150.86,0.00019162,2]
[373451294,1753014640282,-1000.0,0.00019164,2]
[373451296,1753014640291,-1200.0,0.00019164,2]
[373451297,1753014640301,-500.0,0.00019164,2]
[373451300,1753014640311,-1341.07,0.00019168,2]
[373451302,1753014640320,-212.62197638,0.00019173,2]
[373451304,1753014640330,-440.0,0.00019178,2]
[373451306,1753014640339,-440.0,0.00019178,2]
[373451308,1753014640349,-410.91846146,0.00019178,2]
[373451310,1753014640358,-440.0,0.00019178,2]
[373451312,1753014640370,-442.97335058,0.00019178,2]
[373451314,1753014640379,-480.0,0.00019178,2]
[373451316,1753014640389,-442.44819564,0.00019178,2]
[373451318,1753014640398,-480.0,0.00019178,2]
[373451320,1753014640408,-480.0,0.00019178,2]
[373451322,1753014640417,-480.0,0.00019178,2]
[373451324,1753014640427,-370.03940108,0.00019178,2]
[373451326,1753014640437,-440.0,0.00019178,2]
[373451328,1753014640447,-151.34147939,0.00019178,2]
[373451330,1753014640457,-480.0,0.00019178,2]
[373451332,1753014640466,-440.0,0.00019178,2]
[373451334,1753014640477,-480.0,0.00019178,2]
[373451336,1753014640487,-440.0,0.00019178,2]
[373451338,1753014640496,-480.0,0.00019178,2]
[373451340,1753014640509,-480.0,0.00019178,2]
[373451342,1753014640519,-386.6632884,0.00019178,2]
[373451344,1753014640529,-440.0,0.00019178,2]
[373451346,1753014640538,-440.0,0.00019178,2]
[373451349,1753014640548,-440.0,0.00019178,2]
[373451351,1753014640557,-440.0,0.00019178,2]
[373451353,1753014640568,-261.67633926,0.00019178,2]
[373451355,1753014640580,-480.0,0.00019178,2]
[373451357,1753014640590,-440.0,0.00019178,2]
[373451359,1753014640599,-440.0,0.00019178,2]
[373451361,1753014640609,-236.34481136,0.00019178,2]
[373451363,1753014640624,-440.0,0.00019178,2]
[373451365,1753014640637,-439.5833867,0.00019178,2]
[373451367,1753014640647,-440.0,0.00019178,2]
[373451369,1753014640657,-554.55724694,0.00019178,2]
[373451371,1753014640667,-440.0,0.00019178,2]
[373451373,1753014640679,-421.00133864,0.00019178,2]
[373451375,1753014640690,-480.0,0.00019178,2]
[373451377,1753014640700,-420.0,0.00019178,2]
[373451379,1753014640710,-440.0,0.00019178,2]
[373451381,1753014640720,-440.0,0.00019178,2]
[373451383,1753014640730,-442.33065369,0.00019178,2]
[373451385,1753014640741,-440.0,0.00019178,2]
[373451387,1753014640751,-420.76459641,0.00019178,2]
[373451389,1753014640761,-505.50841903,0.00019178,2]
[373451391,1753014640772,-480.0,0.00019178,2]
[373451394,1753014640782,-480.0,0.00019178,2]
[373451396,1753014640792,-500.0,0.00019178,2]
[373451398,1753014640803,-460.0,0.00019178,2]
[373451400,1753014640812,-480.0,0.00019178,2]
[373451402,1753014640822,-480.0,0.00019178,2]
[373451404,1753014640833,-480.0,0.00019178,2]
[373451406,1753014640843,-480.0,0.00019178,2]
[373451408,1753014640853,-480.0,0.00019178,2]
[373451410,1753014640865,-480.0,0.00019178,2]
[373451412,1753014640875,-324.68,0.00019178,2]
[373451414,1753014640885,-500.0,0.00019178,2]
[373451416,1753014640895,-250.0,0.00019178,2]
[373451418,1753014640905,-215.48,0.00019178,2]
[373451420,1753014640915,-480.0,0.00019178,2]
[373451422,1753014640924,-480.0,0.00019178,2]
[373451424,1753014640935,-480.0,0.00019178,2]
[373451426,1753014640945,-480.0,0.00019178,2]
[373451428,1753014640954,-480.0,0.00019178,2]
[373451430,1753014640964,-320.88400926,0.00019178,2]
[373451432,1753014640974,-360.21815133,0.00019178,2]
[373451434,1753014640984,-200.05886632,0.00019178,2]
[373451436,1753014640994,-221.89,0.00019178,2]
[373451438,1753014641003,-480.0,0.00019178,2]
[373451440,1753014641013,-480.0,0.00019178,2]
[373451442,1753014641023,-480.0,0.00019178,2]
[373451445,1753014641033,-328.0,0.00019178,2]
[373451446,1753014641043,-480.0,0.00019178,2]
[373451447,1753014641052,-480.0,0.00019178,2]
[373451448,1753014641062,-480.0,0.00019178,2]
[373451449,1753014641075,-440.0,0.00019178,2]
[373451450,1753014641086,-480.0,0.00019178,2]
[373451451,1753014641095,-480.0,0.00019178,2]
[373451452,1753014641106,-480.0,0.00019178,2]
[373451453,1753014641118,-480.0,0.00019178,2]
[373451454,1753014641128,-465.45009439,0.00019178,2]
[373451456,1753014641138,-480.0,0.00019178,2]
[373451458,1753014641148,-393.2,0.00019178,2]
[373451460,1753014641158,-480.0,0.00019178,2]
[373451462,1753014641167,-480.0,0.00019178,2]
[373451464,1753014641177,-506.84186481,0.00019178,2]
[373451466,1753014641187,-480.0,0.00019178,2]
[373451468,1753014641197,-480.0,0.00019178,2]
[373451470,1753014641207,-318.2,0.00019178,2]
[373451472,1753014641216,-480.0,0.00019178,2]
[373451474,1753014641226,-480.0,0.00019178,2]
[373451477,1753014641236,-480.0,0.00019178,2]
[373451479,1753014641245,-480.0,0.00019178,2]
[373451481,1753014641255,-480.0,0.00019178,2]
[373451483,1753014641264,-260.38,0.00019178,2]
[373451485,1753014641274,-480.0,0.00019178,2]
[373451487,1753014641284,-480.0,0.00019178,2]
[373451489,1753014641294,-480.0,0.00019178,2]
[373451491,1753014641304,-480.0,0.00019178,2]
[373451493,1753014641313,-409.81938959,0.00019178,2]
[373451495,1753014641323,-500.0,0.00019178,2]
[373451497,1753014641333,-480.0,0.00019178,2]
[373451499,1753014641343,-480.0,0.00019178,2]
[373451501,1753014641353,-480.0,0.00019178,2]
[373451503,1753014641363,-480.0,0.00019178,2]
[373451505,1753014641373,-480.0,0.00019178,2]
[373451507,1753014641383,-480.0,0.00019178,2]
[373451509,1753014641393,-480.0,0.00019178,2]
[373451511,1753014641402,-610.38,0.00019178,2]
[373451513,1753014641412,-480.0,0.00019178,2]
[373451515,1753014641422,-500.0,0.00019178,2]
[373451517,1753014641432,-480.0,0.00019178,2]
[373451519,1753014641442,-500.0,0.00019178,2]
[373451521,1753014641452,-480.0,0.00019178,2]
[373451524,1753014641462,-500.0,0.00019178,2]
[373451526,1753014641472,-480.0,0.00019178,2]
[373451528,1753014641482,-420.0,0.00019178,2]
[373451530,1753014641491,-1149.63,0.00019178,2]
[373451532,1753014641504,-480.0,0.00019178,2]
[373451534,1753014641514,-537.63474655,0.00019178,2]
[373451536,1753014641523,-480.0,0.00019178,2]
[373451538,1753014641533,-480.0,0.00019178,2]
[373451540,1753014641543,-480.0,0.00019178,2]
[373451542,1753014641553,-480.0,0.00019178,2]
[373451544,1753014641562,-480.0,0.00019178,2]
[373451546,1753014641571,-400.0,0.00019178,2]
[373451548,1753014641581,-480.0,0.00019178,2]
[373451550,1753014641592,-480.0,0.00019178,2]
[373451552,1753014641605,-420.0,0.00019178,2]
[373451554,1753014641616,-480.0,0.00019178,2]
[373451556,1753014641626,-1157.17,0.00019178,2]
[373451558,1753014641640,-1110.3,0.00019178,2]
[373451560,1753014641650,-480.0,0.00019178,2]
[373451562,1753014641660,-480.0,0.00019178,2]
[373451564,1753014641670,-480.0,0.00019178,2]
[373451566,1753014641679,-624.25,0.00019178,2]
[373451568,1753014641689,-480.0,0.00019178,2]
[373451570,1753014641699,-420.0,0.00019178,2]
[373451572,1753014641708,-400.0,0.00019178,2]
[373451575,1753014641719,-480.0,0.00019178,2]
[373451576,1753014641729,-2174.54,0.00019178,2]
[373451579,1753014641739,-797.31,0.00019178,2]
[373451581,1753014641749,-1022.195767,0.00019178,2]
[373451582,1753014641758,-480.0,0.00019178,2]
[373451585,1753014641768,-400.0,0.00019178,2]
[373451586,1753014641777,-480.0,0.00019178,2]
[373451589,1753014641787,-411.9,0.00019178,2]
[373451591,1753014641796,-663.69,0.00019178,2]
[373451593,1753014641807,-480.0,0.00019178,2]
[373451595,1753014641816,-480.0,0.00019178,2]
[373451597,1753014641826,-581.95395448,0.00019178,2]
[373451599,1753014641835,-480.0,0.00019178,2]
[373451601,1753014641846,-616.09,0.00019178,2]
[373451603,1753014641855,-174.272482,0.00019178,2]
[373451605,1753014641867,-218.04,0.00019178,2]
[373451607,1753014641876,-1284.099981,0.00019178,2]
[373451609,1753014641886,-1246.634372,0.00019178,2]
[373451611,1753014641897,-480.0,0.00019178,2]
[373451613,1753014641907,-664.53,0.00019178,2]
[373451615,1753014641916,-480.0,0.00019178,2]
[373451617,1753014641926,-480.0,0.00019178,2]
[373451619,1753014641935,-1646.34,0.00019178,2]
[373451621,1753014641945,-480.0,0.00019178,2]
[373451623,1753014641954,-480.0,0.00019178,2]
[373451625,1753014641965,-480.0,0.00019178,2]
[373451627,1753014641975,-480.0,0.00019178,2]
[373451629,1753014641984,-480.0,0.00019178,2]
[373451631,1753014641994,-258.64,0.00019178,2]
[373451633,1753014642003,-480.0,0.00019178,2]
[373451635,1753014642013,-663.81,0.00019178,2]
[373451637,1753014642023,-603.17,0.00019178,2]
[373451639,1753014642033,-480.0,0.00019178,2]
[373451641,1753014642043,-206.31345274,0.00019178,2]
[373451643,1753014642052,-480.0,0.00019178,2]
[373451645,1753014642062,-885.52,0.00019178,2]
[373451647,1753014642072,-508.26,0.00019178,2]
[373451649,1753014642081,-646.27,0.00019178,2]
[373451651,1753014642091,-480.0,0.00019178,2]
[373451653,1753014642100,-480.0,0.00019178,2]
[373451655,1753014642110,-741.47,0.00019178,2]
[373451657,1753014642122,-480.0,0.00019178,2]
[373451659,1753014642132,-650.94,0.00019178,2]
[373451661,1753014642142,-480.0,0.00019178,2]
[373451663,1753014642152,-480.0,0.00019178,2]
[373451665,1753014642161,-2188.28,0.00019178,2]
[373451667,1753014642171,-3039.93,0.00019178,2]
[373451669,1753014642182,-480.0,0.00019178,2]
[373451671,1753014642191,-480.0,0.00019178,2]
[373451700,1753014642202,-569.58,0.00019178,2]
[373451706,1753014642511,-485.24348289,0.00019178,2]
[373451708,1753014642520,-699.61,0.00019178,2]
[373451710,1753014642530,-540.27,0.00019178,2]
[373451712,1753014642539,-596.67,0.00019178,2]
[373451714,1753014642549,-185.823099,0.00019178,2]
[373451716,1753014642558,-182.030409,0.00019178,2]
[373451718,1753014642568,-480.0,0.00019178,2]
[373451720,1753014642577,-911.93,0.00019178,2]
[373451722,1753014642586,-436.17,0.00019178,2]
[373451724,1753014642596,-480.0,0.00019178,2]
[373451726,1753014642605,-622.44,0.00019178,2]
[373451728,1753014642617,-480.0,0.00019178,2]
[373451730,1753014642626,-480.0,0.00019178,2]
[373451732,1753014642639,-480.0,0.00019178,2]
[373451734,1753014642648,-480.0,0.00019178,2]
[373451737,1753014642658,-480.0,0.00019178,2]
[373451739,1753014642668,-400.0,0.00019178,2]
[373451741,1753014642678,-480.0,0.00019178,2]
[373451744,1753014642688,-813.91,0.00019178,2]
[373451747,1753014642697,-480.0,0.00019178,2]
[373451750,1753014642707,-652.74,0.00019178,2]
[373451752,1753014642716,-480.0,0.00019178,2]
[373451754,1753014642726,-480.0,0.00019178,2]
[373451756,1753014642736,-679.68,0.00019178,2]
[373451758,1753014642745,-480.0,0.00019178,2]
[373451760,1753014642754,-1671.03,0.00019178,2]
[373451762,1753014642763,-480.0,0.00019178,2]
[373451764,1753014642772,-158.6007,0.00019178,2]
[373451766,1753014642782,-374.82,0.00019178,2]
[373451768,1753014642791,-480.0,0.00019178,2]
[373451770,1753014642801,-480.0,0.00019178,2]
[373451772,1753014642811,-480.0,0.00019178,2]
[373451774,1753014642820,-583.7,0.00019178,2]
[373451776,1753014642829,-620.3,0.00019178,2]
[373451778,1753014642839,-480.0,0.00019178,2]
[373451780,1753014642848,-480.0,0.00019178,2]
[373451782,1753014642857,-480.0,0.00019178,2]
[373451784,1753014642867,-480.0,0.00019178,2]
[373451786,1753014642877,-480.0,0.00019178,2]
[373451788,1753014642887,-480.0,0.00019178,2]
[373451790,1753014642897,-480.0,0.00019178,2]
[373451792,1753014642906,-610.89,0.00019178,2]
[373451794,1753014642916,-480.0,0.00019178,2]
[373451796,1753014642925,-480.0,0.00019178,2]
[373451798,1753014642934,-768.41,0.00019178,2]
[373451800,1753014642944,-345.0,0.00019178,2]
[373451802,1753014642953,-480.0,0.00019178,2]
[373451804,1753014642963,-765.32,0.00019178,2]
[373451806,1753014642973,-480.0,0.00019178,2]
[373451808,1753014642982,-480.0,0.00019178,2]
[373451810,1753014642992,-480.0,0.00019178,2]
[373451812,1753014643001,-480.0,0.00019178,2]
[373451814,1753014643011,-480.0,0.00019178,2]
[373451816,1753014643020,-983.09,0.00019178,2]
[373451818,1753014643029,-480.0,0.00019178,2]
[373451820,1753014643039,-400.0,0.00019178,2]
[373451822,1753014643048,-575.87,0.00019178,2]
[373451824,1753014643057,-480.0,0.00019178,2]
[373451826,1753014643066,-593.69,0.00019178,2]
[373451828,1753014643075,-832.57,0.00019178,2]
[373451830,1753014643085,-480.0,0.00019178,2]
[373451832,1753014643094,-480.0,0.00019178,2]
[373451834,1753014643103,-480.0,0.00019178,2]
[373451836,1753014643116,-480.0,0.00019178,2]
[373451838,1753014643126,-480.0,0.00019178,2]
[373451840,1753014643135,-480.0,0.00019178,2]
[373451842,1753014643145,-480.0,0.00019178,2]
[373451844,1753014643154,-480.0,0.00019178,2]
[373451846,1753014643163,-737.5,0.00019178,2]
[373451848,1753014643172,-480.0,0.00019178,2]
[373451850,1753014643182,-480.0,0.00019178,2]
[373451852,1753014643192,-480.0,0.00019178,2]
[373451854,1753014643201,-932.28,0.00019178,2]
[373451856,1753014643211,-480.0,0.00019178,2]